fUSD/lending_fUSD_20241223
["ID","MTS","AMOUNT","RATE_DAILY","PERIOD"]
[346390884,1734935443673,-2901.49058151,0.00019443,2]
[346390885,1734935443683,-500.0,0.0001945,2]
[346390886,1734935443693,-500.0,0.0001945,2]
[346390887,1734935443702,-500.0,0.00019451,2]
[346390888,1734935443711,-500.0,0.00019451,2]
[346390889,1734935443720,-999.64,0.00019451,2]
[346390890,1734935443729,-875.84,0.00019451,2]
[346390891,1734935443740,-2879.09,0.00019451,2]
[346390892,1734935443749,-2169.28,0.00019451,2]
[346390893,1734935443758,-500.0,0.00019451,2]
[346390894,1734935443767,-626.6,0.00019451,2]
[346390895,1734935443776,-500.0,0.00019452,2]
[346390896,1734935443785,-500.0,0.00019452,2]
[346390897,1734935443795,-292.51097586,0.00019452,2]
[346390898,1734935443804,-500.0,0.00019452,2]
[346390899,1734935443814,-500.0,0.00019452,2]
[346390900,1734935443823,-500.0,0.00019452,2]
[346390901,1734935443832,-614.21225821,0.00019452,2]
[346390902,1734935443841,-583.80568958,0.00019452,2]
[346390903,1734935443850,-500.0,0.00019452,2]
[346390904,1734935443859,-500.0,0.00019452,2]
[346390905,1734935443868,-500.0,0.00019452,2]
[346390906,1734935443878,-500.0,0.00019452,2]
[346390907,1734935443887,-500.0,0.00019452,2]
[346390908,1734935443901,-500.0,0.00019452,2]
[346390909,1734935443911,-512.41956529,0.00019452,2]
[346390910,1734935443919,-500.0,0.00019452,2]
[346390911,1734935443928,-500.0,0.00019452,2]
[346390912,1734935443938,-500.0,0.00019452,2]
[346390913,1734935443947,-500.0,0.00019452,2]
[346390914,1734935443956,-500.0,0.00019452,2]
[346390915,1734935443965,-500.0,0.00019452,2]
[346390916,1734935443974,-500.0,0.00019452,2]
[346390917,1734935443983,-500.0,0.00019452,2]
[346390918,1734935443994,-500.0,0.00019452,2]
[346390919,1734935444003,-500.0,0.00019452,2]
[346390920,1734935444012,-500.0,0.00019452,2]
[346390921,1734935444021,-500.0,0.00019452,2]
[346390922,1734935444030,-500.0,0.00019452,2]
[346390923,1734935444039,-500.0,0.00019452,2]
[346390924,1734935444049,-500.0,0.00019452,2]
[346390925,1734935444059,-500.0,0.00019452,2]
[346390926,1734935444068,-500.0,0.00019452,2]
[346390927,1734935444077,-500.0,0.00019452,2]
[346390928,1734935444087,-500.0,0.00019452,2]
[346390929,1734935444096,-500.0,0.00019452,2]
[346390930,1734935444106,-500.0,0.00019452,2]
[346390931,1734935444115,-500.0,0.00019452,2]
[346390932,1734935444124,-500.0,0.00019452,2]
[346390933,1734935444133,-500.0,0.00019452,2]
[346390934,1734935444142,-500.0,0.00019452,2]
[346390935,1734935444152,-500.0,0.00019452,2]
[346390936,1734935444161,-500.0,0.00019452,2]
[346390937,1734935444171,-500.0,0.00019452,2]
[346390938,1734935444180,-500.0,0.00019452,2]
[346390939,1734935444189,-500.0,0.00019452,2]
[346390940,1734935444198,-500.0,0.00019452,2]
[346390941,1734935444207,-500.0,0.00019452,2]
[346390942,1734935444217,-500.0,0.00019452,2]
[346390943,1734935444226,-500.0,0.00019452,2]
[346390944,1734935444235,-500.0,0.00019452,2]
[346390945,1734935444244,-500.0,0.00019452,2]
[346390946,1734935444253,-500.0,0.00019452,2]
[346390947,1734935444262,-500.0,0.00019452,2]
[346390948,1734935444272,-500.0,0.00019452,2]
[346390949,1734935444281,-500.0,0.00019452,2]
[346390950,1734935444290,-500.0,0.00019452,2]
[346390951,1734935444299,-500.0,0.00019452,2]
[346390952,1734935444308,-500.0,0.00019452,2]
[346390953,1734935444317,-500.0,0.00019452,2]
[346390954,1734935444326,-500.0,0.00019452,2]
[346390955,1734935444335,-500.0,0.00019452,2]
[346390956,1734935444344,-500.0,0.00019452,2]
[346390957,1734935444353,-500.0,0.00019452,2]
[346390958,1734935444362,-500.0,0.00019452,2]
[346390959,1734935444371,-500.0,0.00019452,2]
[346390960,1734935444381,-500.0,0.00019452,2]
[346390961,1734935444390,-500.0,0.00019452,2]
[346390962,1734935444399,-500.0,0.00019452,2]
[346390963,1734935444408,-500.0,0.00019452,2]
[346390964,1734935444417,-500.0,0.00019452,2]
[346390965,1734935444426,-508.76359034,0.00019452,2]
[346390966,1734935444435,-500.0,0.00019452,2]
[346390967,1734935444444,-500.0,0.00019452,2]
[346390968,1734935444453,-500.0,0.00019452,2]
[346390969,1734935444462,-500.0,0.00019452,2]
[346390970,1734935444472,-500.0,0.00019452,2]
[346390971,1734935444481,-500.0,0.00019452,2]
[346390972,1734935444491,-528.5,0.00019452,2]
[346390973,1734935444500,-229.90583831,0.00019452,2]
[346390974,1734935444509,-500.0,0.00019452,2]
[346390975,1734935444518,-500.0,0.00019452,2]
[346390976,1734935444527,-500.0,0.00019452,2]
[346390977,1734935444536,-500.0,0.00019452,2]
[346390978,1734935444549,-500.0,0.00019452,2]
[346390979,1734935444560,-500.0,0.00019452,2]
[346390980,1734935444569,-500.0,0.00019452,2]
[346390981,1734935444579,-500.0,0.00019452,2]
[346390982,1734935444590,-500.0,0.00019452,2]
[346390983,1734935444599,-500.0,0.00019452,2]
[346390984,1734935444608,-500.0,0.00019452,2]
[346390985,1734935444619,-500.0,0.00019452,2]
[346390986,1734935444628,-539.00884332,0.00019452,2]
[346390987,1734935444638,-500.0,0.00019452,2]
[346390988,1734935444647,-500.0,0.00019452,2]
[346390989,1734935444656,-500.0,0.00019452,2]
[346390990,1734935444665,-547.88743409,0.00019452,2]
[346390991,1734935444674,-512.52461618,0.00019452,2]
[346390992,1734935444684,-500.0,0.00019452,2]
[346390993,1734935444693,-1577.848044,0.00019452,2]
[346390994,1734935444702,-508.79919928,0.00019452,2]
[346390995,1734935444711,-500.0,0.00019452,2]
[346390996,1734935444721,-222.72825975,0.00019452,2]
[346390997,1734935444730,-1436.985312,0.00019452,2]
[346390998,1734935444742,-500.0,0.00019452,2]
[346390999,1734935444752,-503.24102327,0.00019452,2]
[346391000,1734935444761,-500.0,0.00019452,2]
[346391001,1734935444771,-500.0,0.00019452,2]
[346391002,1734935444780,-500.0,0.00019452,2]
[346391003,1734935444790,-500.0,0.00019452,2]
[346391004,1734935444800,-508.03785196,0.00019452,2]
[346391005,1734935444809,-601.91,0.00019452,2]
[346391006,1734935444819,-500.0,0.00019452,2]
[346391007,1734935444828,-500.0,0.00019452,2]
[346391008,1734935444837,-500.0,0.00019452,2]
[346391009,1734935444847,-500.0,0.00019452,2]
[346391010,1734935444856,-500.0,0.00019452,2]
[346391011,1734935444865,-500.0,0.00019452,2]
[346391012,1734935444875,-503.91474057,0.00019452,2]
[346391013,1734935444884,-192.14,0.00019452,2]
[346391014,1734935444894,-500.0,0.00019452,2]
[346391015,1734935444903,-508.82316252,0.00019452,2]
[346391016,1734935444912,-500.0,0.00019452,2]
[346391017,1734935444922,-264.01,0.00019452,2]
[346391018,1734935444932,-558.48,0.00019452,2]
[346391019,1734935444942,-504.44594057,0.00019452,2]
[346391020,1734935444951,-500.0,0.00019452,2]
[346391021,1734935444960,-502.97484817,0.00019452,2]
[346391022,1734935444970,-500.0,0.00019452,2]
[346391023,1734935444979,-213.81,0.00019452,2]
[346391024,1734935444989,-500.0,0.00019452,2]
[346391025,1734935445001,-502.46353179,0.00019452,2]
[346391026,1734935445011,-374.25,0.00019452,2]
[346391027,1734935445021,-500.0,0.00019452,2]
[346391028,1734935445030,-500.0,0.00019452,2]
[346391029,1734935445043,-513.25906322,0.00019452,2]
[346391030,1734935445063,-500.0,0.00019452,2]
[346391031,1734935445072,-500.0,0.00019452,2]
[346391032,1734935445081,-561.17537789,0.00019452,2]
[346391033,1734935445090,-508.67824439,0.00019452,2]
[346391034,1734935445100,-500.0,0.00019452,2]
[346391035,1734935445109,-500.0,0.00019452,2]
[346391036,1734935445118,-500.0,0.00019452,2]
[346391037,1734935445127,-500.0,0.00019452,2]
[346391038,1734935445137,-500.0,0.00019452,2]
[346391039,1734935445146,-500.0,0.00019452,2]
[346391040,1734935445156,-500.0,0.00019452,2]
[346391041,1734935445165,-500.0,0.00019452,2]
[346391042,1734935445174,-500.0,0.00019452,2]
[346391043,1734935445184,-500.0,0.00019452,2]
[346391044,1734935445193,-508.38,0.00019452,2]
[346391045,1734935445202,-362.24226555,0.00019452,2]
[346391046,1734935445212,-331.26506963,0.00019452,2]
[346391047,1734935445221,-622.29,0.00019452,2]
[346391048,1734935445231,-722.17,0.00019452,2]
[346391049,1734935445244,-500.0,0.00019452,2]
[346391050,1734935445253,-500.0,0.00019452,2]
[346391051,1734935445262,-500.0,0.00019452,2]
[346391052,1734935445272,-500.0,0.00019452,2]
[346391053,1734935445281,-500.0,0.00019452,2]
[346391054,1734935445291,-505.44490242,0.00019452,2]
[346391055,1734935445300,-500.0,0.00019452,2]
[346391056,1734935445309,-552.85,0.00019452,2]
[346391058,1734935445319,-507.1720221,0.00019452,2]
[346391059,1734935445328,-500.0,0.00019452,2]
[346391060,1734935445337,-500.0,0.00019452,2]
[346391061,1734935445346,-500.0,0.00019452,2]
[346391062,1734935445355,-500.0,0.00019452,2]
[346391063,1734935445366,-373.1899315,0.00019452,2]
[346391064,1734935445375,-500.0,0.00019452,2]
[346391065,1734935445384,-500.0,0.00019452,2]
[346391066,1734935445394,-500.0,0.00019452,2]
[346391067,1734935445403,-500.0,0.00019452,2]
[346391068,1734935445412,-500.0,0.00019452,2]
[346391069,1734935445422,-500.0,0.00019452,2]
[346391070,1734935445431,-500.0,0.00019452,2]
[346391071,1734935445440,-255.68,0.00019452,2]
[346391072,1734935445449,-500.0,0.00019452,2]
[346391073,1734935445458,-500.0,0.00019452,2]
[346391074,1734935445467,-500.0,0.00019452,2]
[346391075,1734935445476,-500.0,0.00019452,2]
[346391077,1734935445485,-500.0,0.00019452,2]
[346391079,1734935445495,-411.52312552,0.00019452,2]
[346391081,1734935445504,-519.90487717,0.00019452,2]
[346391084,1734935445513,-503.0445124,0.00019452,2]
[346391087,1734935445523,-500.0,0.00019452,2]
[346391090,1734935445532,-500.0,0.00019452,2]
[346391092,1734935445541,-500.0,0.00019452,2]
[346391093,1734935445553,-500.0,0.00019452,2]
[346391094,1734935445562,-505.48626186,0.00019452,2]
[346391095,1734935445571,-500.0,0.00019452,2]
[346391096,1734935445580,-500.0,0.00019452,2]
[346391097,1734935445589,-500.0,0.00019452,2]
[346391098,1734935445598,-500.0,0.00019452,2]
[346391099,1734935445607,-500.0,0.00019452,2]
[346391100,1734935445617,-500.0,0.00019452,2]
[346391101,1734935445626,-324.38,0.00019452,2]
[346391102,1734935445636,-504.90470598,0.00019452,2]
[346391103,1734935445645,-358.78,0.00019452,2]
[346391104,1734935445654,-507.00998068,0.00019452,2]
[346391105,1734935445663,-500.0,0.00019452,2]
[346391106,1734935445672,-500.0,0.00019452,2]
[346391107,1734935445681,-500.0,0.00019452,2]
[346391108,1734935445690,-500.0,0.00019452,2]
[346391109,1734935445699,-500.0,0.00019452,2]
[346391110,1734935445708,-500.0,0.00019452,2]
[346391111,1734935445717,-639.90184653,0.00019452,2]
[346391112,1734935445726,-509.69,0.00019452,2]
[346391113,1734935445735,-500.0,0.00019452,2]
[346391114,1734935445745,-500.0,0.00019452,2]
[346391115,1734935445754,-500.0,0.00019452,2]
[346391116,1734935445763,-785.36,0.00019452,2]
[346391117,1734935445772,-500.0,0.00019452,2]
[346391118,1734935445781,-500.0,0.00019452,2]
[346391119,1734935445790,-525.67,0.00019452,2]
[346391120,1734935445801,-664.84,0.00019452,2]
[346391121,1734935445810,-505.71494482,0.00019452,2]
[346391122,1734935445819,-603.41868898,0.00019452,2]
[346391123,1734935445828,-500.0,0.00019452,2]
[346391124,1734935445837,-500.0,0.00019452,2]
[346391125,1734935445846,-507.03956983,0.00019452,2]
[346391126,1734935445855,-500.0,0.00019452,2]
[346391127,1734935445864,-609.92,0.00019452,2]
[346391128,1734935445873,-500.0,0.00019452,2]
[346391129,1734935445882,-500.0,0.00019452,2]
[346391130,1734935445891,-500.0,0.00019452,2]
[346391131,1734935445900,-515.15115746,0.00019452,2]
[346391132,1734935445910,-500.0,0.00019452,2]
[346391133,1734935445919,-506.71557406,0.00019452,2]
[346391134,1734935445928,-537.52,0.00019452,2]
[346391135,1734935445938,-500.0,0.00019452,2]
[346391136,1734935445947,-500.0,0.00019452,2]
[346391137,1734935445958,-595.37643371,0.00019452,2]
[346391138,1734935445968,-500.0,0.00019452,2]
[346391139,1734935445978,-500.0,0.00019452,2]
[346391140,1734935445987,-500.0,0.00019452,2]
[346391141,1734935445997,-500.0,0.00019452,2]
[346391142,1734935446165,-505.18308164,0.00019452,2]
[346391143,1734935446175,-551.53,0.00019452,2]
[346391144,1734935446184,-500.0,0.00019452,2]
[346391145,1734935446193,-500.0,0.00019452,2]
[346391146,1734935446203,-645.14,0.00019452,2]
[346391147,1734935446211,-500.0,0.00019452,2]
[346391148,1734935446221,-500.0,0.00019452,2]
[346391149,1734935446230,-519.84276691,0.00019452,2]
[346391150,1734935446239,-1180.05,0.00019452,2]
[346391151,1734935446249,-500.0,0.00019452,2]
[346391152,1734935446259,-500.0,0.00019452,2]
[346391153,1734935446268,-571.68905191,0.00019452,2]
[346391154,1734935446277,-500.0,0.00019452,2]
[346391155,1734935446286,-500.0,0.00019452,2]
[346391156,1734935446296,-500.0,0.00019452,2]
[346391157,1734935446305,-500.0,0.00019452,2]
[346391158,1734935446314,-500.0,0.00019452,2]
[346391159,1734935446323,-500.0,0.00019452,2]
[346391160,1734935446332,-500.0,0.00019452,2]
[346391161,1734935446342,-500.0,0.00019452,2]
[346391162,1734935446351,-500.0,0.00019452,2]
[346391163,1734935446360,-500.0,0.00019452,2]
[346391164,1734935446370,-500.0,0.00019452,2]
[346391165,1734935446379,-500.0,0.00019452,2]
[346391166,1734935446389,-500.0,0.00019452,2]
[346391167,1734935446398,-881.13,0.00019452,2]
[346391168,1734935446408,-500.0,0.00019452,2]
[346391169,1734935446417,-832.62,0.00019452,2]
[346391170,1734935446426,-861.36,0.00019452,2]
[346391171,1734935446435,-500.0,0.00019452,2]
[346391172,1734935446444,-500.0,0.00019452,2]
[346391173,1734935446454,-500.0,0.00019452,2]
[346391174,1734935446464,-500.0,0.00019452,2]
[346391175,1734935446473,-856.02,0.00019452,2]
[346391176,1734935446482,-503.66836831,0.00019452,2]
[346391177,1734935446492,-500.0,0.00019452,2]
[346391178,1734935446501,-500.0,0.00019452,2]
[346391179,1734935446511,-559.91,0.00019452,2]
[346391180,1734935446520,-500.0,0.00019452,2]
[346391181,1734935446529,-500.0,0.00019452,2]
[346391182,1734935446538,-698.24,0.00019452,2]
[346391183,1734935446549,-500.0,0.00019452,2]
[346391184,1734935446559,-500.0,0.00019452,2]
[346391185,1734935446568,-500.0,0.00019452,2]
[346391186,1734935446578,-502.98906196,0.00019452,2]
[346391187,1734935446587,-500.0,0.00019452,2]
[346391188,1734935446596,-500.0,0.00019452,2]
[346391189,1734935446605,-503.05888525,0.00019452,2]
[346391190,1734935446615,-279.68177828,0.00019452,2]
[346391191,1734935446624,-243.90377889,0.00019452,2]
[346391192,1734935446634,-500.0,0.00019452,2]
[346391193,1734935446643,-500.0,0.00019452,2]
[346391194,1734935446653,-507.49929656,0.00019452,2]
[346391195,1734935446662,-586.22,0.00019452,2]
[346391196,1734935446671,-500.0,0.00019452,2]
[346391197,1734935446680,-500.0,0.00019452,2]
[346391198,1734935446690,-500.0,0.00019452,2]
[346391199,1734935446700,-507.82782805,0.00019452,2]
[346391200,1734935446709,-500.0,0.00019452,2]
[346391201,1734935446718,-500.0,0.00019452,2]
[346391202,1734935446727,-502.76822471,0.00019452,2]
[346391203,1734935446736,-615.77,0.00019452,2]
[346391204,1734935446746,-500.0,0.00019452,2]
[346391205,1734935446755,-500.0,0.00019452,2]
[346391206,1734935446764,-500.0,0.00019452,2]
[346391207,1734935446773,-500.0,0.00019452,2]
[346391208,1734935446783,-500.0,0.00019452,2]
[346391209,1734935446791,-509.0,0.00019452,2]
[346391210,1734935446800,-500.0,0.00019452,2]
[346391211,1734935446809,-500.0,0.00019452,2]
[346391212,1734935446818,-500.0,0.00019452,2]
[346391213,1734935446827,-500.0,0.00019452,2]
[346391214,1734935446836,-500.0,0.00019452,2]
[346391215,1734935446845,-837.51,0.00019452,2]
[346391216,1734935446854,-500.0,0.00019452,2]
[346391217,1734935446863,-516.39997253,0.00019452,2]
[346391218,1734935446872,-500.0,0.00019452,2]
[346391219,1734935446881,-809.61,0.00019452,2]
[346391220,1734935446891,-500.0,0.00019452,2]
[346391221,1734935446900,-500.0,0.00019452,2]
[346391222,1734935446909,-500.0,0.00019452,2]
[346391223,1734935446918,-500.0,0.00019452,2]
[346391224,1734935446927,-500.0,0.00019452,2]
[346391225,1734935446937,-500.0,0.00019452,2]
[346391226,1734935446946,-500.0,0.00019452,2]
[346391227,1734935446955,-500.0,0.00019452,2]
[346391228,1734935446964,-500.0,0.00019452,2]
[346391229,1734935446973,-500.0,0.00019452,2]
[346391230,1734935446983,-500.0,0.00019452,2]
[346391231,1734935446992,-500.0,0.00019452,2]
[346391232,1734935447001,-504.52505396,0.00019452,2]
[346391233,1734935447010,-500.0,0.00019452,2]
[346391234,1734935447019,-500.0,0.00019452,2]
[346391235,1734935447029,-500.0,0.00019452,2]
[346391236,1734935447038,-500.0,0.00019452,2]
[346391237,1734935447047,-500.0,0.00019452,2]
[346391238,1734935447056,-607.44,0.00019452,2]
[346391239,1734935447065,-502.73574505,0.00019452,2]
[346391240,1734935447074,-500.0,0.00019452,2]
[346391241,1734935447083,-500.0,0.00019452,2]
[346391242,1734935447092,-365.14389023,0.00019452,2]
[346391243,1734935447101,-503.59175568,0.00019452,2]
[346391244,1734935447111,-500.0,0.00019452,2]
[346391245,1734935447120,-501.45,0.00019452,2]
[346391246,1734935447130,-505.67219641,0.00019452,2]
[346391247,1734935447139,-500.0,0.00019452,2]
[346391248,1734935447148,-500.0,0.00019452,2]
[346391249,1734935447158,-505.07360981,0.00019452,2]
[346391250,1734935447167,-920.72,0.00019452,2]
[346391251,1734935447176,-500.0,0.00019452,2]
[346391252,1734935447186,-500.0,0.00019452,2]
[346391253,1734935447195,-500.0,0.00019452,2]
[346391254,1734935447204,-500.0,0.00019452,2]
[346391255,1734935447214,-500.0,0.00019452,2]
[346391256,1734935447223,-500.0,0.00019452,2]
[346391257,1734935447233,-500.0,0.00019452,2]
[346391258,1734935447242,-500.0,0.00019452,2]
[346391259,1734935447253,-500.0,0.00019452,2]
[346391260,1734935447263,-500.0,0.00019452,2]
[346391261,1734935447272,-500.0,0.00019452,2]
[346391262,1734935447281,-500.0,0.00019452,2]
[346391263,1734935447290,-799.19,0.00019452,2]
[346391264,1734935447299,-466.37141203,0.00019452,2]
[346391265,1734935447309,-500.0,0.00019452,2]
[346391266,1734935447318,-500.0,0.00019452,2]
[346391267,1734935447327,-500.0,0.00019452,2]
[346391268,1734935447336,-500.0,0.00019452,2]
[346391269,1734935447346,-500.0,0.00019452,2]
[346391270,1734935447355,-669.9,0.00019452,2]
[346391271,1734935447364,-503.16668811,0.00019452,2]
[346391272,1734935447374,-500.0,0.00019452,2]
[346391273,1734935447383,-840.24,0.00019452,2]
[346391274,1734935447392,-500.0,0.00019452,2]
[346391275,1734935447401,-503.87803148,0.00019452,2]
[346391276,1734935447410,-500.0,0.00019452,2]
[346391277,1734935447419,-500.0,0.00019452,2]
[346391278,1734935447428,-500.0,0.00019452,2]
[346391279,1734935447437,-500.0,0.00019452,2]
[346391280,1734935447446,-624.93,0.00019452,2]
[346391281,1734935447455,-500.0,0.00019452,2]
[346391282,1734935447464,-500.0,0.00019452,2]
[346391283,1734935447473,-500.0,0.00019452,2]
[346391284,1734935447482,-711.25,0.00019452,2]
[346391285,1734935447491,-505.3317697,0.00019452,2]
[346391286,1734935447503,-500.0,0.00019452,2]
[346391287,1734935447512,-513.01959459,0.00019452,2]
[346391288,1734935447521,-500.0,0.00019452,2]
[346391289,1734935447530,-500.0,0.00019452,2]
[346391290,1734935447539,-500.0,0.00019452,2]
[346391291,1734935447554,-1077.26,0.00019452,2]
[346391292,1734935447563,-500.0,0.00019452,2]
[346391293,1734935447572,-504.79440102,0.00019452,2]
[346391294,1734935447581,-560.91,0.00019452,2]
[346391295,1734935447590,-500.0,0.00019452,2]
[346391296,1734935447600,-500.0,0.00019452,2]
[346391297,1734935447609,-500.0,0.00019452,2]
[346391298,1734935447619,-500.0,0.00019452,2]
[346391299,1734935447629,-500.0,0.00019452,2]
[346391300,1734935447638,-668.55,0.00019452,2]
[346391301,1734935447647,-500.0,0.00019452,2]
[346391302,1734935447655,-500.0,0.00019452,2]
[346391303,1734935447665,-501.87567687,0.00019452,2]
[346391304,1734935447674,-500.0,0.00019452,2]
[346391305,1734935447683,-500.0,0.00019452,2]
[346391306,1734935447692,-500.0,0.00019452,2]
[346391307,1734935447701,-501.82362417,0.00019452,2]
[346391308,1734935447711,-500.0,0.00019452,2]
[346391309,1734935447720,-926.14,0.00019452,2]
[346391310,1734935447729,-563.44,0.00019452,2]
[346391311,1734935447738,-500.0,0.00019452,2]
[346391312,1734935447747,-774.41,0.00019452,2]
[346391313,1734935447756,-500.0,0.00019452,2]
[346391314,1734935447766,-500.0,0.00019452,2]
[346391315,1734935447775,-241.55684078,0.00019452,2]
[346391316,1734935447784,-512.4,0.00019452,2]
[346391317,1734935447793,-500.0,0.00019452,2]
[346391318,1734935447801,-500.0,0.00019452,2]
[346391319,1734935447811,-1147.32,0.00019452,2]
[346391320,1734935447820,-586.30042538,0.00019452,2]
[346391321,1734935447829,-1223.64,0.00019452,2]
[346391322,1734935447838,-164.81687288,0.00019452,2]
[346391323,1734935447847,-550.09,0.00019452,2]
[346391324,1734935447856,-659.31,0.00019452,2]
[346391325,1734935447866,-500.0,0.00019452,2]
[346391326,1734935447875,-1762.37,0.00019452,2]
[346391327,1734935447885,-508.44617906,0.00019452,2]
[346391328,1734935447894,-500.0,0.00019452,2]
[346391329,1734935447903,-309.99153515,0.00019452,2]
[346391330,1734935447913,-500.0,0.00019452,2]
[346391331,1734935447922,-1136.53,0.00019452,2]
[346391332,1734935447931,-1538.55,0.00019452,2]
[346391333,1734935447940,-502.20813314,0.00019452,2]
[346391334,1734935447950,-500.0,0.00019452,2]
[346391335,1734935447959,-501.82013216,0.00019452,2]
[346391336,1734935447968,-500.0,0.00019452,2]
[346391337,1734935447977,-1338.24,0.00019452,2]
[346391338,1734935447988,-500.0,0.00019452,2]
[346391339,1734935447998,-500.0,0.00019452,2]
[346391340,1734935448007,-500.0,0.00019452,2]
[346391341,1734935448016,-797.76,0.00019452,2]
[346391342,1734935448026,-500.0,0.00019452,2]
[346391343,1734935448035,-510.73137102,0.00019452,2]
[346391344,1734935448045,-1914.22,0.00019452,2]
[346391345,1734935448054,-1730.27,0.00019452,2]
[346391346,1734935448063,-500.0,0.00019452,2]
[346391347,1734935448072,-691.67,0.00019452,2]
[346391348,1734935448081,-1014.4,0.00019452,2]
[346391349,1734935448091,-500.0,0.00019452,2]
[346391350,1734935448100,-500.0,0.00019452,2]
[346391351,1734935448109,-500.0,0.00019452,2]
[346391352,1734935448119,-500.0,0.00019452,2]
[346391353,1734935448127,-2171.24,0.00019452,2]
[346391354,1734935448137,-1372.74,0.00019452,2]
[346391355,1734935448146,-693.96,0.00019452,2]
[346391356,1734935448155,-616.13366607,0.00019452,2]
[346391357,1734935448165,-692.53,0.00019452,2]
[346391358,1734935448175,-1493.52,0.00019452,2]
[346391359,1734935448184,-1290.13,0.00019452,2]
[346391360,1734935448193,-500.0,0.00019452,2]
[346391361,1734935448203,-500.0,0.00019452,2]
[346391362,1734935448212,-826.62,0.00019452,2]
[346391363,1734935448221,-500.0,0.00019452,2]
[346391364,1734935448230,-8616.06,0.00019452,2]
[346391365,1734935448240,-1403.86,0.00019452,2]
[346391366,1734935448250,-2490.51,0.00019452,2]
[346391367,1734935448260,-1479.03,0.00019452,2]
[346391368,1734935448269,-511.2210348,0.00019452,2]
[346391369,1734935448279,-500.0,0.00019452,2]
[346391370,1734935448289,-500.0,0.00019452,2]
[346391371,1734935448299,-2459.25,0.00019452,2]
[346391372,1734935448308,-896.21,0.00019452,2]
[346391373,1734935448318,-849.22,0.00019452,2]
[346391374,1734935448327,-500.0,0.00019452,2]
[346391375,1734935448337,-12006.65,0.00019452,2]
[346391376,1734935448346,-3580.17,0.00019452,2]
[346391377,1734935448356,-1673.65,0.00019452,2]
[346391378,1734935448367,-910.12,0.00019452,2]
[346391379,1734935448376,-500.0,0.00019452,2]
[346391380,1734935448386,-3753.12,0.00019452,2]
[346391381,1734935448396,-500.0,0.00019452,2]
[346391382,1734935448405,-500.0,0.00019452,2]
[346391383,1734935448415,-676.2,0.00019452,2]
[346391384,1734935448425,-25979.47,0.00019452,2]
[346391385,1734935448435,-500.0,0.00019452,2]
[346391386,1734935448446,-899.71,0.00019452,2]
[346391387,1734935448455,-1767.55,0.00019452,2]
[346391388,1734935448465,-500.0,0.00019452,2]
[346391389,1734935448475,-598.23,0.00019452,2]
[346391390,1734935448485,-1387.33,0.00019452,2]
[346391391,1734935448494,-500.0,0.00019452,2]
[346391392,1734935448504,-6393.21,0.00019452,2]
[346391393,1734935448514,-555.3,0.00019452,2]
[346391394,1734935448523,-1219.07,0.00019452,2]